Workbook

Sheet Intro&Instructions
C3: FUEL POVERTY CALCULATOR
C4: Last updated: 27/02/2026
C7: The Fuel Poverty Calculator is a free Microsoft Excel tool that allows users to input occupancy information, income, housing costs and energy bill details to estimate fuel poverty status in England, Scotland, and Wales.
C9: The process of calculating fuel poverty using the old and new definitions requires some or all of the following information (depending on the definition):
C11: • Total number of people in the household (permanent residents)
C12: • Number of adults
C13: • Number of children (under 14)*
C14: • Number of children (0-1)†
C15: • Number of children (2-4)†
C16: • Number of children (primary school age)†
C17: • Number of children (secondary school age)†
C18: • Annual total household net income (including income from benefits, tax credits and savings)
C19: • Annual fuel costs for heating, water heating, lights, appliances and cooking
C20: • Annual housing costs (mortgage repayments and/or rent costs; for the full details on the calculation of a 'fuel poverty income' see the diagram below)
C21: • The EPC rating of the building*
C23: *England only
C24: †Scotland only
C26: The Department for Energy Security and Net Zero (DESNZ) publish an in-depth publication on the methodology used to calculate fuel poverty in England. This can be found here:
C27: https://www.gov.uk/government/publications/fuel-poverty-statistics-methodology-handbook
C28: The Welsh defintion for fuel poverty can be found in Appendix A of the Fuel poverty modelled estimates for Wales. This can be found here:
C29: Fuel poverty modelled estimates for Wales: as at October 2024 | GOV.WALES
C30: The Scottish Parliament passed an Act defining fuel poverty. This can be found here:
C31: https://www.legislation.gov.uk/asp/2019/10/enacted
C32: A further explanation of the Scotland fuel poverty definition can be found here:
C33: https://fuelpovertypanel.scot/blog/definition-of-fuel-poverty-explained/
C35: This spreadsheet contains nine tabs:
C37: FPCalculationForm England | D37: The FPCalculationForm England tab calculates fuel poverty of households using the required information described above, for England. This can be used for calculations on individual households. However, if you wish to record several households or even a whole community's fuel poverty status, then you can press the Transfer record to database button. This will export the information and results in a new row in the CommunityFPDatabase England tab. After transfering the data you can press the Clear data button to clear the form and enter new data.
C38: FPCalculationForm Wales | D38: The FPCalculationForm Wales tab is the same as that for England but the information gathered in the form is modified to be suitable for the Welsh Fuel Poverty calculation.
C39: FPCalculationForm Scotland | D39: The FPCalculationForm Scotland tab is the same as that for England but the information gathered in the form is modified to be suitable for the Scottish Fuel Poverty calculation.
C40: CommunityFPDatabase England | D40: This tab will contain all the exported information from the FPCalculationForm England, with the most recently exported record at the top of the table.
C41: CommunityFPDatabase Wales | D41: This tab will contain all the exported information from the FPCalculationForm Wales, with the most recently exported record at the top of the table.
C42: CommunityFPDatabase Scotland | D42: This tab will contain all the exported information from the FPCalculationForm Scotland, with the most recently exported record at the top of the table.
C43: DataCollectionFormEng (PRINT) | D43: These are forms that can be printed off and used to collect information to input into the relevant FPCalculationForm tab. This includes a section which can be used to calculate the total annual net income for a household from various sources and for different people in the household.
C44: DataCollectionFormWal (PRINT)
C45: DataCollectionFormSco (PRINT)
C47: The different fuel poverty definitions England Low Income Low Energy Efficiency The official definition in England (2021-). A household is defined as living in fuel poverty if they have a Fuel Poverty Energy Efficiency Rating (FPEER) below 68.5 (roughly EPC band D or below) AND if they were to spend their equivalised required fuel costs, they would be left with an equivalised income (after housing costs) below the relative low income threshold. The relative low income threshold is 60% of the national median of equivalised income (after housing costs). Low Income High Cost The former definition in England (2013-2021). A household is defined as living in fuel poverty if their equivalised required fuel costs are above the national median of equivalised required fuel costs AND if they were to spend their equivalised required fuel costs, they would be left with an equivalised income (after housing costs) below the relative low income threshold. The relative low income threshold is 60% of the national median of equivalised income (after housing costs). The former definition in England (-2013), before the Fuel Poverty Review by John Hills, was the 10% indicator. In the above two definitions, household fuel costs and income are equivalised. Equivalising effectively increases the incomes and fuel costs of single people, and reduces the incomes and fuel costs of larger households, with the intention of making them comparable. Scotland The official definition in Scotland (2019-): A household is defined as living in fuel poverty if (a) the fuel costs necessary for the home in which members of the household live are more than 10% of the household’s adjusted (i.e. after housing costs) net income, and (b) after deducting such fuel costs, benefits received for a care need or disability (if any) and the household’s childcare costs (if any), the household’s remaining adjusted net income is insufficient to maintain an acceptable standard of living for members of the household. Wales 10% indicator This definition is the official definition in Wales. A household is defined as living in fuel poverty if their required fuel costs (not equivalised) are more than 10% of their full income (not equivalised and before housing costs).
C53: The main steps in calculating equivalised income after housing costs (AHC) under the LILEE metric

Sheet Release Notes
C3: FUEL POVERTY CALCULATOR
C4: Release notes - February 2026
C7: This updated version of the Fuel Poverty Calculator determines fuel poverty status for England using the LILEE definition of fuel poverty. It also now determines fuel poverty status for Scotland using the Scottish fuel poverty definition and builds out a separate, more accurate calculation form for Wales. The tool also includes England's former LIHC definition and "10% indicator" definition of fuel poverty. The thresholds for income and fuel costs for England come from the "Annual Fuel Poverty Statistics in England (2024 data)" released in March 2025. Calculations for England have been completed following guidance from the Fuel Poverty Methodology Handbook from the Department for Energy Security & Net Zero (DESNZ). For Scotland, results from the online Minimum Income Calculator have been used to establish an income threshold (https://www.minimumincome.org.uk/). For Wales, a simple calculation has been made based on the 10% definiton.

Sheet FPCalculationForm England
B3: FUEL POVERTY CALCULATION FORM
C7: Title
C8: First name
C9: Surname
C10: Flat number
C11: Building name
C12: Building number
C13: Street
C14: District
C15: Town
C16: County
C17: Post code
C20: Household income
C21: Monthly income from paid or self employment (less tax & NI)
C22: Monthly income from state benefits1,2 and tax credits
C23: Monthly income from any pension received3
C25: Monthly interest from savings or investments
C27: Annual council tax bill
C28: Amount of Winter Fuel Payment received4
C30: Annual net household income | E30: =12*(E21+E22+E23+E25)-E27+E28 -> £0 | F30: (INC1)
C31: (Any income should take into account tax and NI deductions)
C32: 1 Also include housing related benefits, Council Tax Support/Reduction, and Mortage Payment Protection Insurance (MPPI). Ensure Universal Credit payment for lone parents is at least their theoretical entitlement.
C33: 2 Exclude disability benefits (Disability Living Allowance, Personal Independence Payments, and Attendance Allowance).
C34: 3 Ensure pension payments are at least those of minimum state pension.
C35: 4 Winter Fuel Payment varies between £100 and £300. Check here for the correct amount:
C36: www.gov.uk/winter-fuel-payment/what-youll-get
C39: Housing Costs
C40: mortgage payments
C41: If you have a mortgage, how much do you pay in each installment?
C42: How often a year do you make these payments (i.e. If weekly enter '52', monthly enter '12', quarterly enter '4')
C43: Annual mortgage payments | E43: =E41*E42 -> £0
C45: rent payments
C46: If you pay rent, how much do you pay each installment?
C47: How often a year do you make these payments (i.e. If weekly enter '52', monthly enter '12', quarterly enter '4')
C48: Annual rent payments | E48: =E46*E47 -> £0
C50: Annual income (after housing costs) | E50: =E30-E43-E48 -> £0
C53: Fuel costs (Enter monthly costs. So, if for example you pay quarterly, divide this amount by 3.)
C54: What do you pay for electricity each month?
C55: What do you pay for gas each month?
C56: What do you pay for other fuels each month?
C58: Do you receive the Warm Home Discount?
C59: https://www.gov.uk/the-warm-home-discount-scheme
C60: Annual fuel costs | E60: =(E54+E55+E56)*12-IF(E58="yes",150,0) -> £0
C63: Household size
C64: How many people aged 14 or over are regularly living in your household?
C65: How many people aged under 14 are regularly living in your household?
C67: Total number of people regularly living in household | E67: =SUM(E64:E65) -> 0
C69: Annual equivalised fuel costs | E69: =IFERROR(E60/params_eng!F15,0) -> £0
C71: Annual equivalised income (after housing costs) | E71: =IFERROR(E50/params_eng!J13,0) -> £0
C74: EPC band
C75: What is the EPC band of your property?
B78: Official fuel poverty definition in England (2021-) A household is defined as living in fuel poverty if they have a Fuel Poverty Energy Efficiency Rating (FPEER) below 68.5 (EPC band D or below) AND if they were to spend their equivalised required fuel costs, they would be left with an equivalised income (after housing costs) below the relative low income threshold. The relative low income threshold is 60% of the national median of equivalised income (after housing costs). OR, MORE SIMPLY: Fuel poor households are low income households living in low energy efficiency homes The above Low Income Low Energy Efficiency (LILEE) definition of fuel poverty replaced the Low Income High Cost (LIHC) definition in England in 2021, which itself replaced the 10% indicator definition in 2013. The 10% indicator definition is still used in Wales and Northern Ireland. See the "Intro&Instructions" tab for more details on the different fuel poverty definitions. To calculate the official fuel poverty status of a household, the annual fuel costs must be those that are required to be spent in order to provide an 'adequate level of warmth' in the dwelling, as calculated by a BREDEM based energy assessment. If you wish to use this tool to calculate whether a household is in official fuel poverty, then you will need to use the total annual energy costs as calculated by an energy assessment of a dwelling. If you are using actual expenditure on fuel to determine a households fuel poverty status, then you should be aware that this does not follow the official methodology for calculating fuel poverty. However, in the majority of cases (for various reasons) the amount people spend on their fuel bills will be lower than the amount required to be spent to heat homes to 'adequate' levels. Therefore, if you do use a household's actual fuel expenditure and find that that household is in fuel poverty, then it is likely that the household would also be in fuel poverty according to the official definition.
B81: =IF(E67=0,"MISSING VALUE - HOUSEHOLD SIZE",IF(ISBLANK(E75),"MISSING VALUE - EPC BAND OF PROPERTY",IF(E30=0,"MISSING VALUE - HOUSEHOLD INCOME",IF(params_eng!C18+params_eng!C15=2,"Your household is living in fuel poverty","Your household is not fuel poor")))) -> MISSING VALUE - HOUSEHOLD SIZE | G81: Low Income Low Energy Efficiency (LILEE) Official definition in England (2021-)
B82: =IF(params_eng!C15+params_eng!C18=2,"Your 'fuel poverty gap' cannot be accurately calculated using the LILEE method","") -> Your 'fuel poverty gap' cannot be accurately calculated using the LILEE method
B83: =IF(E67=0,"MISSING VALUE - HOUSEHOLD SIZE",IF(E30=0,"MISSING VALUE - HOUSEHOLD INCOME",IF(params_eng!C18+params_eng!C16=2,"Your household is living in fuel poverty","Your household is not fuel poor"))) -> MISSING VALUE - HOUSEHOLD SIZE | G83: Low Income High Cost (LIHC) Former definition in England (2013-2021)
B84: =IF(params_eng!C16+params_eng!C18=2,"Your annual 'fuel poverty gap' is:","") ->  | E84: =IF(params_eng!C16+params_eng!C18=2,params_eng!F15*((E69-params_eng!C11)-MAX(E71-params_eng!C12, 0)),"") -> 
B85: =IFERROR(IF(E60/E30>0.1,"Your household is living in fuel poverty","Your household is not fuel poor"),"") ->  | G85: 10% indicator Former definition in England (-2013)
B86: % of household income (before housing costs) spent on fuel | E86: =IFERROR(E60/E30,"") -> 

Sheet FPCalculationForm Wales
B3: FUEL POVERTY CALCULATION FORM
C7: Title
C8: First name
C9: Surname
C10: Flat number
C11: Building name
C12: Building number
C13: Street
C14: District
C15: Town
C16: County
C17: Post code
C20: Household income
C21: Monthly income from paid or self employment (less tax & NI)
C22: Monthly income from state benefits1 and tax credits
C23: Monthly income from any pension received
C25: Monthly interest from savings or investments
C27: Annual council tax bill
C28: Amount of Winter Fuel Payment received2
C30: Annual net household income | E30: =12*(E21+E22+E23+E25)-E27+E28 -> £0 | F30: (INC1)
C31: (Any income should take into account tax and NI deductions)
C32: 1 Also include housing related benefits, Council Tax Support/Reduction, Mortage Payment Protection Insurance (MPPI), and disability benefits.
C34: 2 Winter Fuel Payment varies between £100 and £300. Check here for the correct amount:
C35: www.gov.uk/winter-fuel-payment/what-youll-get
C38: Fuel costs (Enter monthly costs. So, if for example you pay quarterly, divide this amount by 3.)
C39: What do you pay for electricity each month?
C40: What do you pay for gas each month?
C41: What do you pay for other fuels each month?
C43: Do you receive the Warm Home Discount?
C44: https://www.gov.uk/the-warm-home-discount-scheme
C45: Annual fuel costs | E45: =(E39+E40+E41)*12-IF(E43="yes",150,0) -> £0
B47: Official fuel poverty definition in Wales A household is in fuel poverty if it needs to spend more than 10% of its income (including housing related benefits and net of council tax) on all household fuel use in order to maintain a satisfactory heating regime. Further, a household is in severe fuel poverty if it needs to spend more than 20% of its income on fuel, and a household is considered at risk of fuel poverty if it needs to spend 8-10% of its income on fuel. If you wish to use this tool to calculate whether a household is in official fuel poverty, then you will need to use the total annual energy costs as calculated by an energy assessment of a dwelling. If you are using actual expenditure on fuel to determine a households fuel poverty status, then you should be aware that this does not follow the official methodology for calculating fuel poverty. However, in the majority of cases (for various reasons) the amount people spend on their fuel bills will be lower than the amount required to be spent to heat homes to 'adequate' levels. Therefore, if you do use a household's actual fuel expenditure and find that that household is in fuel poverty, then it is likely that the household would also be in fuel poverty according to the official definition.
B50: =IFERROR(IF(E45/E30>0.2, "Your household is living in severe fuel poverty",IF(E45/E30>0.1,"Your household is living in fuel poverty",IF(AND(E45/E30>0.08, E45/E30<=0.1),"Your household is not fuel poor but is at risk of fuel poverty","Your household is not fuel poor"))),"") -> 
B51: % of household income (before housing costs) spent on fuel | E51: =IFERROR(E45/E30,"") -> 

Sheet FPCalculationForm Scotland
B3: FUEL POVERTY CALCULATION FORM
C7: Title
C8: First name
C9: Surname
C10: Flat number
C11: Building name
C12: Building number
C13: Street
C14: District
C15: Town
C16: County
C17: Post code
C20: Household income
C21: Monthly income from paid or self employment (less tax & NI)
C22: Monthly income from non-disability state benefits1 and tax credits
C23: Monthly income from disability benefits2
C24: Monthly income from any pension received
C26: Monthly interest from savings or investments
C28: Annual council tax bill
C29: Amount of Pension Age Winter Heating Payment received3
C31: Annual net household income | E31: =12*(E21+E22+E23+E24+E26)-E28+E29 -> £0 | F31: (INC1)
C32: (Any income should take into account tax and NI deductions)
C33: 1 Also include housing related benefits, Council Tax Support/Reduction, and Mortage Payment Protection Insurance (MPPI).
C34: 2 Adult Disability Payment, Scottish Adult Disability Living Allowance, and Pension Age Disability Payment.
C36: 3Pension Age Winter Heating Payment varies between £100 and £300. Check here for the correct amount:
C37: www.mygov.scot/pension-age-winter-heating-payment/how-much-you-might-be-paid
C40: Housing Costs
C41: mortgage payments
C42: If you have a mortgage, how much do you pay in each installment?
C43: How often a year do you make these payments (i.e. If weekly enter '52', monthly enter '12', quarterly enter '4')
C44: Annual mortgage payments | E44: =E42*E43 -> £0
C46: rent payments
C47: If you pay rent, how much do you pay each installment?
C48: How often a year do you make these payments (i.e. If weekly enter '52', monthly enter '12', quarterly enter '4')
C49: Annual rent payments | E49: =E47*E48 -> £0
C51: What are your household's annual water and sewerage costs?
C53: Annual income (after housing costs) | E53: =E31-E44-E49-E51 -> £0
C56: Fuel costs (Enter monthly costs. So, if for example you pay quarterly, divide this amount by 3.)
C57: What do you pay for electricity each month?
C58: What do you pay for gas each month?
C59: What do you pay for other fuels each month?
C61: Do you receive the Warm Home Discount?
C62: https://www.gov.uk/the-warm-home-discount-scheme
C63: Annual fuel costs | E63: =(E57+E58+E59)*12-IF(E61="yes",150,0) -> £0
C66: Household size
C67: How many children of the following ages regularly live in your household?
C68: 0-1 years old
C69: 2-4 years old
C70: Primary School
C71: Secondary School
C72: Total number of children | E72: =SUM(E68:E71) -> 0
C74: How many non-pensioner adults are regularly living in your household?
C75: How many pensioners are regularly living in your household?
C77: Total number of people regularly living in household | E77: =SUM(E74:E75,E72) -> 0
C80: Childcare costs
C81: What are your household's annual childcare costs?
B83: Official fuel poverty definition in Scotland (2019-) A household is in fuel poverty if - (a) the fuel costs necessary for the home in which members of the household live to meet reasonable fuel needs are more than 10% of the household’s adjusted net income, and (b) after deducting such fuel costs, benefits received for a care need or disability (if any) and the household’s childcare costs (if any), the household’s remaining adjusted net income is insufficient to maintain an acceptable standard of living for members of the household. Further, a household is in extreme fuel poverty if (a) the fuel costs necessary for the home in which members of the household live to meet reasonable fuel needs are more than 20% of the household's adjusted net income, and (b) is met, as above. The threshold for an 'acceptable standard of living' is defined as 90% of the Minimum Income Standard (MIS). The MIS thresholds have been sourced from the online Minimum Income Calculator (https://www.minimumincome.org.uk/). Where this calculator doesn't cover a household type, factors have been determined and applied based on a small selection of the households which are applied to less common household types. These factors don't adjust for rural households or different aged children, and so only forms as estimate as to whether a household falls into fuel poverty in Scotland. To calculate the official fuel poverty status of a household, the annual fuel costs must be those that are required to be spent in order to provide an 'adequate level of warmth' in the dwelling, as defined in section 3 of the Fuel Poverty (Targets, Definition and Strategy) (Scotland) Act 2019. If you wish to use this tool to calculate whether a household is in official fuel poverty, then you will need to use the total annual energy costs as calculated by an energy assessment of a dwelling. If you are using actual expenditure on fuel to determine a households fuel poverty status, then you should be aware that this does not follow the official methodology for calculating fuel poverty. However, in the majority of cases (for various reasons) the amount people spend on their fuel bills will be lower than the amount required to be spent to heat homes to 'adequate' levels. Therefore, if you do use a household's actual fuel expenditure and find that that household is in fuel poverty, then it is likely that the household would also be in fuel poverty according to the official definition.
B86: =IFERROR(IF(E77=0,"MISSING VALUE - HOUSEHOLD SIZE",IF(E31=0,"MISSING VALUE - HOUSEHOLD INCOME",IF(params_sco!C19+params_sco!C21=2,"Your household is living in extreme fuel poverty",IF(params_sco!C18+params_sco!C21=2,"Your household is living in fuel poverty","Your household is not fuel poor")))),"Your household is not fuel poor") -> MISSING VALUE - HOUSEHOLD SIZE
B87: =IFERROR(IF(params_sco!C18+params_sco!C21=2,"Your annual 'fuel poverty gap' is:",""),"") ->  | E87: =IFERROR(IF(params_sco!C18+params_sco!C21=2,MIN(params_sco!C23,params_sco!C24),""),"") -> 
B88: % of household income (after housing costs) spent on fuel | E88: =IFERROR('FPCalculationForm Scotland'!E63/'FPCalculationForm Scotland'!E53,"") -> 

Sheet params_eng (hidden)
B3: Needs annual update/check
B4: Equivalised required fuel costs (£) | C4: Equivalised AHC income (£)
B5: Weighted median | C5: Weighted median
B6: 2242.00 | C6: 30733.00
E8: FUEL COST EQUIV FACTORS | H8: INCOME EQUIV FACTORS
B9: Thresholds | F9: factor | I9: factor | J9: factorCalc
B10: Relative low income threshold (60% of median equivalised AHC income) | C10: =C6*0.6 -> £18,439.80 | D10: 1 | E10: 1 person | F10: 0.82 | H10: Initial factor for first adult (HRP) | I10: 0.58 | J10: =IF('FPCalculationForm England'!E67=0,0,I10) -> 0.00
B11: Fuel cost threshold | C11: =B6 -> £2,242.00 | D11: 2 | E11: 2 people | F11: 1.00 | H11: Additional factor for any other adults (14 or over) | I11: 0.42 | J11: =IF('FPCalculationForm England'!E64>1,('FPCalculationForm England'!E64-1)*I11,0) -> 0.00
B12: Relative low income threshold plus fuel cost threshold | C12: =C11+C10 -> £20,681.80 | D12: 3 | E12: 3 people | F12: 1.07 | H12: Factor for children (under 14) | I12: 0.20 | J12: =IF('FPCalculationForm England'!E65=0,0,('FPCalculationForm England'!E65*I12)) -> 0.00
D13: 4 | E13: 4 people | F13: 1.21 | J13: =SUM(J10:J12) -> 0.00
B14: Calculations | D14: 5 | E14: 5 or more people | F14: 1.32
A15: LILEE | B15: Is FPEER likely to be below 68.5 (based on EPC band below C)? | C15: =IF(OR('FPCalculationForm England'!E75="A",'FPCalculationForm England'!E75="B",'FPCalculationForm England'!E75="C"),0,1) -> 1 | F15: =IFERROR(VLOOKUP(IF('FPCalculationForm England'!E67>5,5,'FPCalculationForm England'!E67),D10:F14,3),"") -> 
A16: LIHC | B16: Is annual equivalised fuel costs greater than fuel cost threshold? | C16: =IF('FPCalculationForm England'!E69>C11,1,0) -> 0
B17: Equivalised AHC income minus equivalised fuel costs | C17: ='FPCalculationForm England'!E71-'FPCalculationForm England'!E69 -> £0.00
A18: LIHC and LILEE | B18: Is the above value below the relative low income threshold? | C18: =IF(C17<C10,1,0) -> 1 | E18: Warm home discount dropdown | F18: EPC bands | H18: Title dropdown
E19: Yes | F19: A | H19: Mrs
E20: No | F20: B | H20: Mr
F21: C | H21: Miss
F22: D | H22: Ms
F23: E | H23: Mx
F24: F | H24: Dr
F25: G | H25: Prof
H26: Rev

Sheet params_sco (hidden)
B3: Needs annual update/check
B4: MIS baseline (£)
B5: ='Scotland MIS Backing'!M4 -> 34275.28
E7: SCOTTISH INCOME EQUIV FACTORS
B8: Thresholds | F8: Factor | G8: Factor Calc
B9: Minimum income standard | C9: =IF(C14=1,_xlfn.XLOOKUP(1,(B28:B134='FPCalculationForm Scotland'!E74)*(params_sco!C28:C134='FPCalculationForm Scotland'!E75)*(params_sco!D28:D134='FPCalculationForm Scotland'!E68)*(params_sco!E28:E134='FPCalculationForm Scotland'!E69)*(params_sco!F28:F134='FPCalculationForm Scotland'!E70)*(params_sco!G28:G134='FPCalculationForm Scotland'!E71),params_sco!H28:H134),B5*G14) ->  | E9: Initial adult (HRP) | F9: 0.66 | G9: =IF('FPCalculationForm Scotland'!E74>0,params_sco!F9,0) -> 0.00
B10: 90% of minimum income standard | C10: =C9*0.9 ->  | E10: Additional factor for any other adults (anyone who has completed secondary school) | F10: 0.34 | G10: =IF('FPCalculationForm Scotland'!E74>1,params_sco!F10*('FPCalculationForm Scotland'!E74-1),0) -> 0.00
B11: Table Check 1 (pensioners) | C11: =IF(AND('FPCalculationForm Scotland'!E75<3,'FPCalculationForm Scotland'!E74=0,'FPCalculationForm Scotland'!E72=0),1,0) -> 1 | E11: Factor for children | F11: 0.41 | G11: =IF('FPCalculationForm Scotland'!E72>0,params_sco!F11*'FPCalculationForm Scotland'!E72, 0) -> 0.00
B12: Table Check 2 (single parent) | C12: =IF(AND('FPCalculationForm Scotland'!E74=1,'FPCalculationForm Scotland'!E72<=3,'FPCalculationForm Scotland'!E75=0),1,0) -> 0 | E12: Factor for pensioners HRP | F12: 0.53 | G12: =IF(AND('FPCalculationForm Scotland'!E74=0,'FPCalculationForm Scotland'!E75>0),params_sco!F12,0) -> 0.00
B13: Table Check 3 (2 parents) | C13: =IF(AND('FPCalculationForm Scotland'!E74=2,'FPCalculationForm Scotland'!E72<=4,'FPCalculationForm Scotland'!E75=0),1,0) -> 0 | E13: Additional factor for pensioners | F13: 0.27 | G13: =_xlfn.IFS(AND('FPCalculationForm Scotland'!E74=0,'FPCalculationForm Scotland'!E75>1),params_sco!F13*('FPCalculationForm Scotland'!E75-1),AND('FPCalculationForm Scotland'!E74>0,'FPCalculationForm Scotland'!E75>0),params_sco!F13*'FPCalculationForm Scotland'!E75,TRUE,0) -> 0.00
B14: MIS calculator valid? | C14: =IF(SUM(C11:C13)=1,1,0) -> 1 | G14: =SUM(G9:G13) -> 0.00
E16: Warm home discount dropdown
B17: Calculations | E17: Yes
B18: Is more than 10% of net income AHC required to pay for fuel? (Fuel poverty) (clause a) | C18: =IF(('FPCalculationForm Scotland'!E63/'FPCalculationForm Scotland'!E53)>0.1,1,0) ->  | E18: No
B19: Is more than 20% of net income AHC required to pay for fuel? (Extreme fuel poverty) | C19: =IF(('FPCalculationForm Scotland'!E63/'FPCalculationForm Scotland'!E53)>0.2,1,0) -> 
B20: Remaining income after removing fuel costs, disability benefits, and childcare costs | C20: ='FPCalculationForm Scotland'!E53-'FPCalculationForm Scotland'!E63-'FPCalculationForm Scotland'!E23*12-'FPCalculationForm Scotland'!E81 -> £0.00
B21: Is this below 90% of minimum income standard? (clause b) | C21: =IF(C20<C10,1,0) -> 
B22: 10% of the household's adjusted net income | C22: =0.1*'FPCalculationForm Scotland'!E53 -> £0.00
B23: Fuel gap definition 1 | C23: ='FPCalculationForm Scotland'!E63-C22 -> £0.00
B24: Fuel gap definition 2 | C24: =C10-C20 -> 
B26: Adjusted MIS Calculator outputs
B27: No. adults | C27: No.pensioners | D27: No children (0-1) | E27: No. children (2-4) | F27: No. children (primary) | G27: No.children (secondary) | H27: MIS Calculator figure
B28: 0 | C28: 1 | D28: 0 | E28: 0 | F28: 0 | G28: 0 | H28: 18150.08
B29: 0 | C29: 2 | D29: 0 | E29: 0 | F29: 0 | G29: 0 | H29: 27332.76
B30: 1 | C30: 0 | D30: 0 | E30: 0 | F30: 0 | G30: 0 | H30: 22763.52
B31: 2 | C31: 0 | D31: 0 | E31: 0 | F31: 0 | G31: 0 | H31: 34275.28
B32: 1 | C32: 0 | D32: 1 | E32: 0 | F32: 0 | G32: 0 | H32: 46595.64
B33: 2 | C33: 0 | D33: 1 | E33: 0 | F33: 0 | G33: 0 | H33: 55435.64
B34: 1 | C34: 0 | D34: 2 | E34: 0 | F34: 0 | G34: 0 | H34: 65447.72
B35: 2 | C35: 0 | D35: 2 | E35: 0 | F35: 0 | G35: 0 | H35: 73957.52
B36: 1 | C36: 0 | D36: 3 | E36: 0 | F36: 0 | G36: 0 | H36: 86336.12
B37: 2 | C37: 0 | D37: 3 | E37: 0 | F37: 0 | G37: 0 | H37: 94092.96
B38: 2 | C38: 0 | D38: 0 | E38: 0 | F38: 0 | G38: 4 | H38: 75968.88
B39: 1 | C39: 0 | D39: 0 | E39: 1 | F39: 0 | G39: 0 | H39: 41772.64
B40: 2 | C40: 0 | D40: 0 | E40: 1 | F40: 0 | G40: 0 | H40: 50612.64
B41: 1 | C41: 0 | D41: 1 | E41: 1 | F41: 0 | G41: 0 | H41: 60630.96
B42: 2 | C42: 0 | D42: 1 | E42: 1 | F42: 0 | G42: 0 | H42: 69140.76
B43: 1 | C43: 0 | D43: 2 | E43: 1 | F43: 0 | G43: 0 | H43: 81519.36
B44: 2 | C44: 0 | D44: 2 | E44: 1 | F44: 0 | G44: 0 | H44: 89276.2
B45: 2 | C45: 0 | D45: 0 | E45: 0 | F45: 1 | G45: 3 | H45: 77309.96
B46: 1 | C46: 0 | D46: 0 | E46: 2 | F46: 0 | G46: 0 | H46: 55804.84
B47: 2 | C47: 0 | D47: 0 | E47: 2 | F47: 0 | G47: 0 | H47: 64314.64
B48: 1 | C48: 0 | D48: 1 | E48: 2 | F48: 0 | G48: 0 | H48: 76699.48
B49: 2 | C49: 0 | D49: 1 | E49: 2 | F49: 0 | G49: 0 | H49: 84456.32
B50: 2 | C50: 0 | D50: 0 | E50: 0 | F50: 2 | G50: 2 | H50: 78602.68
B51: 1 | C51: 0 | D51: 0 | E51: 3 | F51: 0 | G51: 0 | H51: 71873.36
B52: 2 | C52: 0 | D52: 0 | E52: 3 | F52: 0 | G52: 0 | H52: 79630.2
B53: 2 | C53: 0 | D53: 0 | E53: 0 | F53: 4 | G53: 0 | H53: 81168.88
B54: 2 | C54: 0 | D54: 0 | E54: 0 | F54: 3 | G54: 1 | H54: 79918.28
B55: 1 | C55: 0 | D55: 0 | E55: 0 | F55: 1 | G55: 0 | H55: 39788.32
B56: 2 | C56: 0 | D56: 0 | E56: 0 | F56: 1 | G56: 0 | H56: 48316.84
B57: 1 | C57: 0 | D57: 1 | E57: 0 | F57: 1 | G57: 0 | H57: 58773
B58: 2 | C58: 0 | D58: 1 | E58: 0 | F58: 1 | G58: 0 | H58: 66970.8
B59: 1 | C59: 0 | D59: 2 | E59: 0 | F59: 1 | G59: 0 | H59: 78486.72
B60: 2 | C60: 0 | D60: 2 | E60: 0 | F60: 1 | G60: 0 | H60: 85932.08
B61: 2 | C61: 0 | D61: 0 | E61: 1 | F61: 0 | G61: 3 | H61: 80208.44
B62: 1 | C62: 0 | D62: 0 | E62: 1 | F62: 1 | G62: 0 | H62: 53946.88
B63: 2 | C63: 0 | D63: 0 | E63: 1 | F63: 1 | G63: 0 | H63: 62144.68
B64: 1 | C64: 0 | D64: 1 | E64: 1 | F64: 1 | G64: 0 | H64: 73666.84
B65: 2 | C65: 0 | D65: 1 | E65: 1 | F65: 1 | G65: 0 | H65: 81112.2
B66: 2 | C66: 0 | D66: 0 | E66: 1 | F66: 1 | G66: 2 | H66: 81501.68
B67: 1 | C67: 0 | D67: 0 | E67: 2 | F67: 1 | G67: 0 | H67: 68840.72
B68: 2 | C68: 0 | D68: 0 | E68: 2 | F68: 1 | G68: 0 | H68: 76286.08
B69: 2 | C69: 0 | D69: 0 | E69: 1 | F69: 2 | G69: 1 | H69: 82817.28
B70: 2 | C70: 0 | D70: 0 | E70: 1 | F70: 3 | G70: 0 | H70: 84067.88
B71: 1 | C71: 0 | D71: 0 | E71: 0 | F71: 2 | G71: 0 | H71: 51295.92
B72: 2 | C72: 0 | D72: 0 | E72: 0 | F72: 2 | G72: 0 | H72: 59181.72
B73: 1 | C73: 0 | D73: 1 | E73: 0 | F73: 2 | G73: 0 | H73: 71206.2
B74: 2 | C74: 0 | D74: 1 | E74: 0 | F74: 2 | G74: 0 | H74: 78339.56
B75: 2 | C75: 0 | D75: 0 | E75: 2 | F75: 0 | G75: 2 | H75: 84274.32
B76: 1 | C76: 0 | D76: 0 | E76: 1 | F76: 2 | G76: 0 | H76: 66380.08
B77: 2 | C77: 0 | D77: 0 | E77: 1 | F77: 2 | G77: 0 | H77: 73513.44
B78: 2 | C78: 0 | D78: 1 | E78: 0 | F78: 0 | G78: 3 | H78: 85031.44
B79: 2 | C79: 0 | D79: 0 | E79: 2 | F79: 1 | G79: 1 | H79: 85589.92
B80: 1 | C80: 0 | D80: 0 | E80: 0 | F80: 3 | G80: 0 | H80: 63793.6
B81: 2 | C81: 0 | D81: 0 | E81: 0 | F81: 3 | G81: 0 | H81: 70614.44
B82: 2 | C82: 0 | D82: 1 | E82: 0 | F82: 1 | G82: 2 | H82: 86327.8
B83: 2 | C83: 0 | D83: 0 | E83: 2 | F83: 2 | G83: 0 | H83: 86840.52
B84: 2 | C84: 0 | D84: 1 | E84: 0 | F84: 2 | G84: 1 | H84: 87643.4
B85: 1 | C85: 0 | D85: 0 | E85: 0 | F85: 0 | G85: 1 | H85: 38262.12
B86: 2 | C86: 0 | D86: 0 | E86: 0 | F86: 0 | G86: 1 | H86: 47102.12
B87: 1 | C87: 0 | D87: 1 | E87: 0 | F87: 0 | G87: 1 | H87: 57268.64
B88: 2 | C88: 0 | D88: 1 | E88: 0 | F88: 0 | G88: 1 | H88: 65778.44
B89: 1 | C89: 0 | D89: 2 | E89: 0 | F89: 0 | G89: 1 | H89: 75869.56
B90: 2 | C90: 0 | D90: 2 | E90: 0 | F90: 0 | G90: 1 | H90: 84678.36
B91: 2 | C91: 0 | D91: 0 | E91: 3 | F91: 0 | G91: 1 | H91: 88308.48
B92: 1 | C92: 0 | D92: 0 | E92: 1 | F92: 0 | G92: 1 | H92: 52445.64
B93: 2 | C93: 0 | D93: 0 | E93: 1 | F93: 0 | G93: 1 | H93: 63189.88
B94: 1 | C94: 0 | D94: 1 | E94: 1 | F94: 0 | G94: 1 | H94: 71052.8
B95: 2 | C95: 0 | D95: 1 | E95: 1 | F95: 0 | G95: 1 | H95: 79861.6
B96: 2 | C96: 0 | D96: 1 | E96: 0 | F96: 3 | G96: 0 | H96: 88894
B97: 1 | C97: 0 | D97: 0 | E97: 2 | F97: 0 | G97: 1 | H97: 66226.68
B98: 2 | C98: 0 | D98: 0 | E98: 2 | F98: 0 | G98: 1 | H98: 75035.48
B99: 2 | C99: 0 | D99: 1 | E99: 1 | F99: 0 | G99: 2 | H99: 89100.44
B100: 2 | C100: 0 | D100: 0 | E100: 3 | F100: 1 | G100: 0 | H100: 89558.56
B101: 1 | C101: 0 | D101: 0 | E101: 0 | F101: 1 | G101: 1 | H101: 49794.68
B102: 2 | C102: 0 | D102: 0 | E102: 0 | F102: 1 | G102: 1 | H102: 57992.48
B103: 1 | C103: 0 | D103: 1 | E103: 0 | F103: 1 | G103: 1 | H103: 68528.2
B104: 2 | C104: 0 | D104: 1 | E104: 0 | F104: 1 | G104: 1 | H104: 77088.96
B105: 2 | C105: 0 | D105: 1 | E105: 1 | F105: 1 | G105: 1 | H105: 90416.04
B106: 1 | C106: 0 | D106: 0 | E106: 1 | F106: 1 | G106: 1 | H106: 63702.08
B107: 2 | C107: 0 | D107: 0 | E107: 1 | F107: 1 | G107: 1 | H107: 72262.84
B108: 2 | C108: 0 | D108: 1 | E108: 1 | F108: 2 | G108: 0 | H108: 91666.64
B109: 2 | C109: 0 | D109: 0 | E109: 4 | F109: 0 | G109: 0 | H109: 92903.2
B110: 1 | C110: 0 | D110: 0 | E110: 0 | F110: 2 | G110: 1 | H110: 61051.64
B111: 2 | C111: 0 | D111: 0 | E111: 0 | F111: 2 | G111: 1 | H111: 69364.36
B112: 2 | C112: 0 | D112: 1 | E112: 2 | F112: 0 | G112: 1 | H112: 93134.6
B113: 2 | C113: 0 | D113: 2 | E113: 0 | F113: 0 | G113: 2 | H113: 93917.2
B114: 2 | C114: 0 | D114: 1 | E114: 2 | F114: 1 | G114: 0 | H114: 94384.68
B115: 1 | C115: 0 | D115: 0 | E115: 0 | F115: 0 | G115: 2 | H115: 48202.96
B116: 2 | C116: 0 | D116: 0 | E116: 0 | F116: 0 | G116: 2 | H116: 56712.76
B117: 1 | C117: 0 | D117: 1 | E117: 0 | F117: 0 | G117: 2 | H117: 66958.32
B118: 2 | C118: 0 | D118: 1 | E118: 0 | F118: 0 | G118: 2 | H118: 75770.24
B119: 2 | C119: 0 | D119: 2 | E119: 0 | F119: 1 | G119: 1 | H119: 95235.92
B120: 1 | C120: 0 | D120: 0 | E120: 1 | F120: 0 | G120: 2 | H120: 62135.32
B121: 2 | C121: 0 | D121: 0 | E121: 1 | F121: 0 | G121: 2 | H121: 70947.24
B122: 2 | C122: 0 | D122: 2 | E122: 0 | F122: 2 | G122: 0 | H122: 96486.52
B123: 2 | C123: 0 | D123: 1 | E123: 3 | F123: 0 | G123: 0 | H123: 97729.32
B124: 1 | C124: 0 | D124: 0 | E124: 0 | F124: 1 | G124: 2 | H124: 59484.36
B125: 2 | C125: 0 | D125: 0 | E125: 0 | F125: 1 | G125: 2 | H125: 68048.24
B126: 2 | C126: 0 | D126: 2 | E126: 1 | F126: 0 | G126: 1 | H126: 97954.48
B127: 2 | C127: 0 | D127: 2 | E127: 1 | F127: 1 | G127: 0 | H127: 99204.56
B128: 2 | C128: 0 | D128: 2 | E128: 2 | F128: 0 | G128: 0 | H128: 102549.2
B129: 1 | C129: 0 | D129: 0 | E129: 0 | F129: 0 | G129: 3 | H129: 57915.52
B130: 2 | C130: 0 | D130: 0 | E130: 0 | F130: 0 | G130: 3 | H130: 65671.32
B131: 2 | C131: 0 | D131: 3 | E131: 0 | F131: 0 | G131: 1 | H131: 102771.24
B132: 2 | C132: 0 | D132: 3 | E132: 0 | F132: 1 | G132: 0 | H132: 104024.44
B133: 2 | C133: 0 | D133: 3 | E133: 1 | F133: 0 | G133: 0 | H133: 107369.08
B134: 2 | C134: 0 | D134: 4 | E134: 0 | F134: 0 | G134: 0 | H134: 112239.92

Sheet Scotland MIS Backing (hidden)
A1: No. adults | B1: No.pensioners | C1: No children (0-1) | D1: No. children (2-4) | E1: No. children (primary) | F1: No.children (secondary) | G1: Total children | H1: Weekly MIS | I1: Annual MIS | L1: Factor calculation:
A2: 0 | B2: 1 | C2: 0 | D2: 0 | E2: 0 | F2: 0 | G2: 0 | H2: £349.04 | I2: =H2*52 -> £18,150.08
A3: 0 | B3: 2 | C3: 0 | D3: 0 | E3: 0 | F3: 0 | G3: 0 | H3: £525.63 | I3: =H3*52 -> £27,332.76 | L3: Single Adult: | M3: =_xlfn.XLOOKUP(1,(A:A=1)*(B:B=0)*(G:G=0),I:I) -> £22,763.52
A4: 1 | B4: 0 | C4: 0 | D4: 0 | E4: 0 | F4: 0 | G4: 0 | H4: £437.76 | I4: £22,763.52 | L4: Adult couple: | M4: =_xlfn.XLOOKUP(1,(A:A=2)*(B:B=0)*(G:G=0),I:I) -> £34,275.28
A5: 2 | B5: 0 | C5: 0 | D5: 0 | E5: 0 | F5: 0 | G5: 0 | H5: £659.14 | I5: £34,275.28 | L5: Single pensioner: | M5: =_xlfn.XLOOKUP(1,(A:A=0)*(B:B=1)*(G:G=0),I:I) -> £18,150.08
A6: 1 | B6: 0 | C6: 1 | D6: 0 | E6: 0 | F6: 0 | G6: 1 | H6: £896.07 | I6: £46,595.64 | L6: Pensioner couple: | M6: =_xlfn.XLOOKUP(1,(A:A=0)*(B:B=2)*(G:G=0),I:I) -> £27,332.76
A7: 2 | B7: 0 | C7: 1 | D7: 0 | E7: 0 | F7: 0 | G7: 1 | H7: £1,066.07 | I7: £55,435.64 | L7: Adult couple 2 children (0-2, primary): | M7: =_xlfn.XLOOKUP(1,(A:A=2)*(B:B=0)*(D:D=1)*(E:E=1),I:I) -> £62,144.68
A8: 1 | B8: 0 | C8: 2 | D8: 0 | E8: 0 | F8: 0 | G8: 2 | H8: £1,258.61 | I8: £65,447.72
A9: 2 | B9: 0 | C9: 2 | D9: 0 | E9: 0 | F9: 0 | G9: 2 | H9: £1,422.26 | I9: £73,957.52 | L9: HRP Adult: | M9: =M3/M4 -> 0.66
A10: 1 | B10: 0 | C10: 3 | D10: 0 | E10: 0 | F10: 0 | G10: 3 | H10: £1,660.31 | I10: £86,336.12 | L10: Additional adult: | M10: =1-M9 -> 0.34
A11: 2 | B11: 0 | C11: 3 | D11: 0 | E11: 0 | F11: 0 | G11: 3 | H11: £1,809.48 | I11: £94,092.96 | L11: HRP pensioner: | M11: =M5/M4 -> 0.53
A12: 2 | B12: 0 | C12: 0 | D12: 0 | E12: 0 | F12: 4 | G12: 4 | H12: £1,460.94 | I12: £75,968.88 | L12: Additional pensioner: | M12: =(M6-M5)/M4 -> 0.27
A13: 1 | B13: 0 | C13: 0 | D13: 1 | E13: 0 | F13: 0 | G13: 1 | H13: £803.32 | I13: £41,772.64 | L13: Child: | M13: =((M7-M4)/2)/M4 -> 0.41
A14: 2 | B14: 0 | C14: 0 | D14: 1 | E14: 0 | F14: 0 | G14: 1 | H14: £973.32 | I14: £50,612.64
A15: 1 | B15: 0 | C15: 1 | D15: 1 | E15: 0 | F15: 0 | G15: 2 | H15: £1,165.98 | I15: £60,630.96
A16: 2 | B16: 0 | C16: 1 | D16: 1 | E16: 0 | F16: 0 | G16: 2 | H16: £1,329.63 | I16: £69,140.76
A17: 1 | B17: 0 | C17: 2 | D17: 1 | E17: 0 | F17: 0 | G17: 3 | H17: £1,567.68 | I17: £81,519.36
A18: 2 | B18: 0 | C18: 2 | D18: 1 | E18: 0 | F18: 0 | G18: 3 | H18: £1,716.85 | I18: £89,276.20
A19: 2 | B19: 0 | C19: 0 | D19: 0 | E19: 1 | F19: 3 | G19: 4 | H19: £1,486.73 | I19: £77,309.96
A20: 1 | B20: 0 | C20: 0 | D20: 2 | E20: 0 | F20: 0 | G20: 2 | H20: £1,073.17 | I20: £55,804.84
A21: 2 | B21: 0 | C21: 0 | D21: 2 | E21: 0 | F21: 0 | G21: 2 | H21: £1,236.82 | I21: £64,314.64
A22: 1 | B22: 0 | C22: 1 | D22: 2 | E22: 0 | F22: 0 | G22: 3 | H22: £1,474.99 | I22: £76,699.48
A23: 2 | B23: 0 | C23: 1 | D23: 2 | E23: 0 | F23: 0 | G23: 3 | H23: £1,624.16 | I23: £84,456.32
A24: 2 | B24: 0 | C24: 0 | D24: 0 | E24: 2 | F24: 2 | G24: 4 | H24: £1,511.59 | I24: £78,602.68
A25: 1 | B25: 0 | C25: 0 | D25: 3 | E25: 0 | F25: 0 | G25: 3 | H25: £1,382.18 | I25: £71,873.36
A26: 2 | B26: 0 | C26: 0 | D26: 3 | E26: 0 | F26: 0 | G26: 3 | H26: £1,531.35 | I26: £79,630.20
A27: 2 | B27: 0 | C27: 0 | D27: 0 | E27: 4 | F27: 0 | G27: 4 | H27: £1,560.94 | I27: £81,168.88
A28: 2 | B28: 0 | C28: 0 | D28: 0 | E28: 3 | F28: 1 | G28: 4 | H28: £1,536.89 | I28: £79,918.28
A29: 1 | B29: 0 | C29: 0 | D29: 0 | E29: 1 | F29: 0 | G29: 1 | H29: £765.16 | I29: £39,788.32
A30: 2 | B30: 0 | C30: 0 | D30: 0 | E30: 1 | F30: 0 | G30: 1 | H30: £929.17 | I30: £48,316.84
A31: 1 | B31: 0 | C31: 1 | D31: 0 | E31: 1 | F31: 0 | G31: 2 | H31: £1,130.25 | I31: £58,773.00
A32: 2 | B32: 0 | C32: 1 | D32: 0 | E32: 1 | F32: 0 | G32: 2 | H32: £1,287.90 | I32: £66,970.80
A33: 1 | B33: 0 | C33: 2 | D33: 0 | E33: 1 | F33: 0 | G33: 3 | H33: £1,509.36 | I33: £78,486.72
A34: 2 | B34: 0 | C34: 2 | D34: 0 | E34: 1 | F34: 0 | G34: 3 | H34: £1,652.54 | I34: £85,932.08
A35: 2 | B35: 0 | C35: 0 | D35: 1 | E35: 0 | F35: 3 | G35: 4 | H35: £1,542.47 | I35: £80,208.44
A36: 1 | B36: 0 | C36: 0 | D36: 1 | E36: 1 | F36: 0 | G36: 2 | H36: £1,037.44 | I36: £53,946.88
A37: 2 | B37: 0 | C37: 0 | D37: 1 | E37: 1 | F37: 0 | G37: 2 | H37: £1,195.09 | I37: £62,144.68
A38: 1 | B38: 0 | C38: 1 | D38: 1 | E38: 1 | F38: 0 | G38: 3 | H38: £1,416.67 | I38: £73,666.84
A39: 2 | B39: 0 | C39: 1 | D39: 1 | E39: 1 | F39: 0 | G39: 3 | H39: £1,559.85 | I39: £81,112.20
A40: 2 | B40: 0 | C40: 0 | D40: 1 | E40: 1 | F40: 2 | G40: 4 | H40: £1,567.34 | I40: £81,501.68
A41: 1 | B41: 0 | C41: 0 | D41: 2 | E41: 1 | F41: 0 | G41: 3 | H41: £1,323.86 | I41: £68,840.72
A42: 2 | B42: 0 | C42: 0 | D42: 2 | E42: 1 | F42: 0 | G42: 3 | H42: £1,467.04 | I42: £76,286.08
A43: 2 | B43: 0 | C43: 0 | D43: 1 | E43: 2 | F43: 1 | G43: 4 | H43: £1,592.64 | I43: £82,817.28
A44: 2 | B44: 0 | C44: 0 | D44: 1 | E44: 3 | F44: 0 | G44: 4 | H44: £1,616.69 | I44: £84,067.88
A45: 1 | B45: 0 | C45: 0 | D45: 0 | E45: 2 | F45: 0 | G45: 2 | H45: £986.46 | I45: £51,295.92
A46: 2 | B46: 0 | C46: 0 | D46: 0 | E46: 2 | F46: 0 | G46: 2 | H46: £1,138.11 | I46: £59,181.72
A47: 1 | B47: 0 | C47: 1 | D47: 0 | E47: 2 | F47: 0 | G47: 3 | H47: £1,369.35 | I47: £71,206.20
A48: 2 | B48: 0 | C48: 1 | D48: 0 | E48: 2 | F48: 0 | G48: 3 | H48: £1,506.53 | I48: £78,339.56
A49: 2 | B49: 0 | C49: 0 | D49: 2 | E49: 0 | F49: 2 | G49: 4 | H49: £1,620.66 | I49: £84,274.32
A50: 1 | B50: 0 | C50: 0 | D50: 1 | E50: 2 | F50: 0 | G50: 3 | H50: £1,276.54 | I50: £66,380.08
A51: 2 | B51: 0 | C51: 0 | D51: 1 | E51: 2 | F51: 0 | G51: 3 | H51: £1,413.72 | I51: £73,513.44
A52: 2 | B52: 0 | C52: 1 | D52: 0 | E52: 0 | F52: 3 | G52: 4 | H52: £1,635.22 | I52: £85,031.44
A53: 2 | B53: 0 | C53: 0 | D53: 2 | E53: 1 | F53: 1 | G53: 4 | H53: £1,645.96 | I53: £85,589.92
A54: 1 | B54: 0 | C54: 0 | D54: 0 | E54: 3 | F54: 0 | G54: 3 | H54: £1,226.80 | I54: £63,793.60
A55: 2 | B55: 0 | C55: 0 | D55: 0 | E55: 3 | F55: 0 | G55: 3 | H55: £1,357.97 | I55: £70,614.44
A56: 2 | B56: 0 | C56: 1 | D56: 0 | E56: 1 | F56: 2 | G56: 4 | H56: £1,660.15 | I56: £86,327.80
A57: 2 | B57: 0 | C57: 0 | D57: 2 | E57: 2 | F57: 0 | G57: 4 | H57: £1,670.01 | I57: £86,840.52
A58: 2 | B58: 0 | C58: 1 | D58: 0 | E58: 2 | F58: 1 | G58: 4 | H58: £1,685.45 | I58: £87,643.40
A59: 1 | B59: 0 | C59: 0 | D59: 0 | E59: 0 | F59: 1 | G59: 1 | H59: £735.81 | I59: £38,262.12
A60: 2 | B60: 0 | C60: 0 | D60: 0 | E60: 0 | F60: 1 | G60: 1 | H60: £905.81 | I60: £47,102.12
A61: 1 | B61: 0 | C61: 1 | D61: 0 | E61: 0 | F61: 1 | G61: 2 | H61: £1,101.32 | I61: £57,268.64
A62: 2 | B62: 0 | C62: 1 | D62: 0 | E62: 0 | F62: 1 | G62: 2 | H62: £1,264.97 | I62: £65,778.44
A63: 1 | B63: 0 | C63: 2 | D63: 0 | E63: 0 | F63: 1 | G63: 3 | H63: £1,459.03 | I63: £75,869.56
A64: 2 | B64: 0 | C64: 2 | D64: 0 | E64: 0 | F64: 1 | G64: 3 | H64: £1,628.43 | I64: £84,678.36
A65: 2 | B65: 0 | C65: 0 | D65: 3 | E65: 0 | F65: 1 | G65: 4 | H65: £1,698.24 | I65: £88,308.48
A66: 1 | B66: 0 | C66: 0 | D66: 1 | E66: 0 | F66: 1 | G66: 2 | H66: £1,008.57 | I66: £52,445.64
A67: 2 | B67: 0 | C67: 0 | D67: 1 | E67: 0 | F67: 1 | G67: 2 | H67: £1,215.19 | I67: =H67*52 -> £63,189.88
A68: 1 | B68: 0 | C68: 1 | D68: 1 | E68: 0 | F68: 1 | G68: 3 | H68: £1,366.40 | I68: £71,052.80
A69: 2 | B69: 0 | C69: 1 | D69: 1 | E69: 0 | F69: 1 | G69: 3 | H69: £1,535.80 | I69: £79,861.60
A70: 2 | B70: 0 | C70: 1 | D70: 0 | E70: 3 | F70: 0 | G70: 4 | H70: £1,709.50 | I70: £88,894.00
A71: 1 | B71: 0 | C71: 0 | D71: 2 | E71: 0 | F71: 1 | G71: 3 | H71: £1,273.59 | I71: £66,226.68
A72: 2 | B72: 0 | C72: 0 | D72: 2 | E72: 0 | F72: 1 | G72: 3 | H72: £1,442.99 | I72: £75,035.48
A73: 2 | B73: 0 | C73: 1 | D73: 1 | E73: 0 | F73: 2 | G73: 4 | H73: £1,713.47 | I73: £89,100.44
A74: 2 | B74: 0 | C74: 0 | D74: 3 | E74: 1 | F74: 0 | G74: 4 | H74: £1,722.28 | I74: £89,558.56
A75: 1 | B75: 0 | C75: 0 | D75: 0 | E75: 1 | F75: 1 | G75: 2 | H75: £957.59 | I75: £49,794.68
A76: 2 | B76: 0 | C76: 0 | D76: 0 | E76: 1 | F76: 1 | G76: 2 | H76: £1,115.24 | I76: £57,992.48
A77: 1 | B77: 0 | C77: 1 | D77: 0 | E77: 1 | F77: 1 | G77: 3 | H77: £1,317.85 | I77: £68,528.20
A78: 2 | B78: 0 | C78: 1 | D78: 0 | E78: 1 | F78: 1 | G78: 3 | H78: £1,482.48 | I78: £77,088.96
A79: 2 | B79: 0 | C79: 1 | D79: 1 | E79: 1 | F79: 1 | G79: 4 | H79: £1,738.77 | I79: £90,416.04
A80: 1 | B80: 0 | C80: 0 | D80: 1 | E80: 1 | F80: 1 | G80: 3 | H80: £1,225.04 | I80: £63,702.08
A81: 2 | B81: 0 | C81: 0 | D81: 1 | E81: 1 | F81: 1 | G81: 3 | H81: £1,389.67 | I81: £72,262.84
A82: 2 | B82: 0 | C82: 1 | D82: 1 | E82: 2 | F82: 0 | G82: 4 | H82: £1,762.82 | I82: £91,666.64
A83: 2 | B83: 0 | C83: 0 | D83: 4 | E83: 0 | F83: 0 | G83: 4 | H83: £1,786.60 | I83: £92,903.20
A84: 1 | B84: 0 | C84: 0 | D84: 0 | E84: 2 | F84: 1 | G84: 3 | H84: £1,174.07 | I84: £61,051.64
A85: 2 | B85: 0 | C85: 0 | D85: 0 | E85: 2 | F85: 1 | G85: 3 | H85: £1,333.93 | I85: £69,364.36
A86: 2 | B86: 0 | C86: 1 | D86: 2 | E86: 0 | F86: 1 | G86: 4 | H86: £1,791.05 | I86: £93,134.60
A87: 2 | B87: 0 | C87: 2 | D87: 0 | E87: 0 | F87: 2 | G87: 4 | H87: £1,806.10 | I87: £93,917.20
A88: 2 | B88: 0 | C88: 1 | D88: 2 | E88: 1 | F88: 0 | G88: 4 | H88: £1,815.09 | I88: £94,384.68
A89: 1 | B89: 0 | C89: 0 | D89: 0 | E89: 0 | F89: 2 | G89: 2 | H89: £926.98 | I89: £48,202.96
A90: 2 | B90: 0 | C90: 0 | D90: 0 | E90: 0 | F90: 2 | G90: 2 | H90: £1,090.63 | I90: £56,712.76
A91: 1 | B91: 0 | C91: 1 | D91: 0 | E91: 0 | F91: 2 | G91: 3 | H91: £1,287.66 | I91: £66,958.32
A92: 2 | B92: 0 | C92: 1 | D92: 0 | E92: 0 | F92: 2 | G92: 3 | H92: £1,457.12 | I92: £75,770.24
A93: 2 | B93: 0 | C93: 2 | D93: 0 | E93: 1 | F93: 1 | G93: 4 | H93: £1,831.46 | I93: £95,235.92
A94: 1 | B94: 0 | C94: 0 | D94: 1 | E94: 0 | F94: 2 | G94: 3 | H94: £1,194.91 | I94: £62,135.32
A95: 2 | B95: 0 | C95: 0 | D95: 1 | E95: 0 | F95: 2 | G95: 3 | H95: £1,364.37 | I95: £70,947.24
A96: 2 | B96: 0 | C96: 2 | D96: 0 | E96: 2 | F96: 0 | G96: 4 | H96: £1,855.51 | I96: £96,486.52
A97: 2 | B97: 0 | C97: 1 | D97: 3 | E97: 0 | F97: 0 | G97: 4 | H97: £1,879.41 | I97: £97,729.32
A98: 1 | B98: 0 | C98: 0 | D98: 0 | E98: 1 | F98: 2 | G98: 3 | H98: £1,143.93 | I98: £59,484.36
A99: 2 | B99: 0 | C99: 0 | D99: 0 | E99: 1 | F99: 2 | G99: 3 | H99: £1,308.62 | I99: £68,048.24
A100: 2 | B100: 0 | C100: 2 | D100: 1 | E100: 0 | F100: 1 | G100: 4 | H100: £1,883.74 | I100: £97,954.48
A101: 2 | B101: 0 | C101: 2 | D101: 1 | E101: 1 | F101: 0 | G101: 4 | H101: £1,907.78 | I101: £99,204.56
A102: 2 | B102: 0 | C102: 2 | D102: 2 | E102: 0 | F102: 0 | G102: 4 | H102: £1,972.10 | I102: £102,549.20
A103: 1 | B103: 0 | C103: 0 | D103: 0 | E103: 0 | F103: 3 | G103: 3 | H103: £1,113.76 | I103: £57,915.52
A104: 2 | B104: 0 | C104: 0 | D104: 0 | E104: 0 | F104: 3 | G104: 3 | H104: £1,262.91 | I104: £65,671.32
A105: 2 | B105: 0 | C105: 3 | D105: 0 | E105: 0 | F105: 1 | G105: 4 | H105: £1,976.37 | I105: £102,771.24
A106: 2 | B106: 0 | C106: 3 | D106: 0 | E106: 1 | F106: 0 | G106: 4 | H106: £2,000.47 | I106: £104,024.44
A107: 2 | B107: 0 | C107: 3 | D107: 1 | E107: 0 | F107: 0 | G107: 4 | H107: £2,064.79 | I107: £107,369.08
A108: 2 | B108: 0 | C108: 4 | D108: 0 | E108: 0 | F108: 0 | G108: 4 | H108: £2,158.46 | I108: £112,239.92

Sheet Sheet3 (hidden)
A1: Title | B1: First name | C1: Surname | D1: Flat number | E1: Building name | F1: Building number | G1: Street | H1: District | I1: Town | J1: County | K1: Post code | L1: Annual net household income | M1: Annual mortgage payments | N1: Annual rent payments | O1: Annual income (after housing costs) | P1: Annual fuel costs | Q1: Household size | R1: Number of adults (>14 years) | S1: Number of children (<14 years) | T1: Annual equivalised fuel costs | U1: Annual equivalised income (after housing costs) | V1: EPC band | W1: Warm Home Discount? | X1: Fuel poverty status: LILEE definition | Y1: Fuel poverty status: LIHC definition | Z1: Fuel poverty gap: LIHC definition | AA1: Fuel poverty status: 10% definition
A2: =IF('FPCalculationForm England'!$D$7=0,"",'FPCalculationForm England'!$D$7) ->  | B2: =IF('FPCalculationForm England'!$D$8=0,"",'FPCalculationForm England'!$D$8) ->  | C2: =IF('FPCalculationForm England'!$D$9=0,"",'FPCalculationForm England'!$D$9) ->  | D2: =IF('FPCalculationForm England'!$D$10=0,"",'FPCalculationForm England'!$D$10) ->  | E2: =IF('FPCalculationForm England'!$D$11=0,"",'FPCalculationForm England'!$D$11) ->  | F2: =IF('FPCalculationForm England'!$D$12=0,"",'FPCalculationForm England'!$D$12) ->  | G2: =IF('FPCalculationForm England'!$D$13=0,"",'FPCalculationForm England'!$D$13) ->  | H2: =IF('FPCalculationForm England'!$D$14=0,"",'FPCalculationForm England'!$D$14) ->  | I2: =IF('FPCalculationForm England'!$D$15=0,"",'FPCalculationForm England'!$D$15) ->  | J2: =IF('FPCalculationForm England'!$D$16=0,"",'FPCalculationForm England'!$D$16) ->  | K2: =IF('FPCalculationForm England'!$D$17=0,"",'FPCalculationForm England'!$D$17) ->  | L2: ='FPCalculationForm England'!E30 -> £0 | M2: ='FPCalculationForm England'!E43 -> £0 | N2: ='FPCalculationForm England'!E48 -> £0 | O2: ='FPCalculationForm England'!E50 -> £0 | P2: ='FPCalculationForm England'!E60 -> £0 | Q2: ='FPCalculationForm England'!E67 -> 0 | R2: ='FPCalculationForm England'!E64 -> 0 | S2: ='FPCalculationForm England'!E65 -> 0 | T2: ='FPCalculationForm England'!E69 -> £0 | U2: ='FPCalculationForm England'!E71 -> £0 | V2: =IF('FPCalculationForm England'!E75=0,"",'FPCalculationForm England'!E75) ->  | W2: =IF('FPCalculationForm England'!E58=0,"",'FPCalculationForm England'!E58) ->  | X2: ='FPCalculationForm England'!B81 -> MISSING VALUE - HOUSEHOLD SIZE | Y2: ='FPCalculationForm England'!B83 -> MISSING VALUE - HOUSEHOLD SIZE | Z2: ='FPCalculationForm England'!E84 ->  | AA2: ='FPCalculationForm England'!B85 -> 

Sheet Sheet4 (hidden)
A1: Title | B1: First name | C1: Surname | D1: Flat number | E1: Building name | F1: Building number | G1: Street | H1: District | I1: Town | J1: County | K1: Post code | L1: Annual net household income | M1: Annual mortgage payments | N1: Annual rent payments | O1: Annual income (after housing costs) | P1: Annual fuel costs | Q1: Household size | R1: Number of children (0-1) | S1: Number of children (2-4) | T1: Number of children (primary) | U1: Number of children (secondary) | V1: Total number of children | W1: Number of adults (non-pensioners) | X1: Number of pensioners | Y1: Warm Home Discount? | Z1: Fuel poverty status | AA1: Fuel poverty gap
A2: =IF('FPCalculationForm Scotland'!D7=0,"",'FPCalculationForm Scotland'!D7) ->  | B2: =IF('FPCalculationForm Scotland'!D8=0,"",'FPCalculationForm Scotland'!D8) ->  | C2: =IF('FPCalculationForm Scotland'!D9=0,"",'FPCalculationForm Scotland'!D9) ->  | D2: =IF('FPCalculationForm Scotland'!D10=0,"",'FPCalculationForm Scotland'!D10) ->  | E2: =IF('FPCalculationForm Scotland'!D11=0,"",'FPCalculationForm Scotland'!D11) ->  | F2: =IF('FPCalculationForm Scotland'!D12=0,"",'FPCalculationForm Scotland'!D12) ->  | G2: =IF('FPCalculationForm Scotland'!D13=0,"",'FPCalculationForm Scotland'!D13) ->  | H2: =IF('FPCalculationForm Scotland'!D14=0,"",'FPCalculationForm Scotland'!D14) ->  | I2: =IF('FPCalculationForm Scotland'!D15=0,"",'FPCalculationForm Scotland'!D15) ->  | J2: =IF('FPCalculationForm Scotland'!D16=0,"",'FPCalculationForm Scotland'!D16) ->  | K2: =IF('FPCalculationForm Scotland'!D17=0,"",'FPCalculationForm Scotland'!D17) ->  | L2: ='FPCalculationForm Scotland'!E31 -> £0 | M2: ='FPCalculationForm Scotland'!E44 -> £0 | N2: ='FPCalculationForm Scotland'!E49 -> £0 | O2: ='FPCalculationForm Scotland'!E53 -> £0 | P2: ='FPCalculationForm Scotland'!E63 -> £0 | Q2: ='FPCalculationForm Scotland'!E77 -> 0 | R2: =IF('FPCalculationForm Scotland'!E68=0,0,'FPCalculationForm Scotland'!E68) -> 0 | S2: =IF('FPCalculationForm Scotland'!E69=0,0,'FPCalculationForm Scotland'!E69) -> 0 | T2: =IF('FPCalculationForm Scotland'!E70=0,0,'FPCalculationForm Scotland'!E70) -> 0 | U2: =IF('FPCalculationForm Scotland'!E71=0,0,'FPCalculationForm Scotland'!E71) -> 0 | V2: =IF('FPCalculationForm Scotland'!E72=0,0,'FPCalculationForm Scotland'!E72) -> 0 | W2: =IF('FPCalculationForm Scotland'!E74=0,0,'FPCalculationForm Scotland'!E74) -> 0 | X2: =IF('FPCalculationForm Scotland'!E75=0,0,'FPCalculationForm Scotland'!E75) -> 0 | Y2: =IF('FPCalculationForm Scotland'!E61=0,"",'FPCalculationForm Scotland'!E61) ->  | Z2: ='FPCalculationForm Scotland'!B86 -> MISSING VALUE - HOUSEHOLD SIZE | AA2: ='FPCalculationForm Scotland'!E87 -> 

Sheet Sheet5 (hidden)
A1: Title | B1: First name | C1: Surname | D1: Flat number | E1: Building name | F1: Building number | G1: Street | H1: District | I1: Town | J1: County | K1: Post code | L1: Annual net household income | M1: Annual fuel costs | N1: Warm Home Discount? | O1: Fuel poverty status
A2: =IF('FPCalculationForm Wales'!$D$7=0,"",'FPCalculationForm Wales'!$D$7) ->  | B2: =IF('FPCalculationForm Wales'!$D$8=0,"",'FPCalculationForm Wales'!$D$8) ->  | C2: =IF('FPCalculationForm Wales'!$D$9=0,"",'FPCalculationForm Wales'!$D$9) ->  | D2: =IF('FPCalculationForm Wales'!$D$10=0,"",'FPCalculationForm Wales'!$D$10) ->  | E2: =IF('FPCalculationForm Wales'!$D$11=0,"",'FPCalculationForm Wales'!$D$11) ->  | F2: =IF('FPCalculationForm Wales'!$D$12=0,"",'FPCalculationForm Wales'!$D$12) ->  | G2: =IF('FPCalculationForm Wales'!$D$13=0,"",'FPCalculationForm Wales'!$D$13) ->  | H2: =IF('FPCalculationForm Wales'!$D$14=0,"",'FPCalculationForm Wales'!$D$14) ->  | I2: =IF('FPCalculationForm Wales'!$D$15=0,"",'FPCalculationForm Wales'!$D$15) ->  | J2: =IF('FPCalculationForm Wales'!$D$16=0,"",'FPCalculationForm Wales'!$D$16) ->  | K2: =IF('FPCalculationForm Wales'!$D$17=0,"",'FPCalculationForm Wales'!$D$17) ->  | L2: ='FPCalculationForm Wales'!E30 -> £0 | M2: ='FPCalculationForm Wales'!E45 -> £0 | N2: ='FPCalculationForm Wales'!E43 -> 0 | O2: ='FPCalculationForm Wales'!B50 -> 

Sheet CommunityFPDatabase England
A1: Title | B1: First name | C1: Surname | D1: Flat number | E1: Building name | F1: Building number | G1: Street | H1: District | I1: Town | J1: County | K1: Post code | L1: Annual net household income | M1: Annual mortgage payments | N1: Annual rent payments | O1: Annual income (after housing costs) | P1: Annual fuel costs | Q1: Household size | R1: Number of adults (>14 years) | S1: Number of children (<14 years) | T1: Annual equivalised fuel costs | U1: Annual equivalised income (after housing costs) | V1: EPC band | W1: Warm Home Discount? | X1: Fuel poverty status: LILEE definition | Y1: Fuel poverty status: LIHC definition | Z1: Fuel poverty gap: LIHC definition | AA1: Fuel poverty status: 10% definition

Sheet CommunityFPDatabase Wales
A1: Title | B1: First name | C1: Surname | D1: Flat number | E1: Building name | F1: Building number | G1: Street | H1: District | I1: Town | J1: County | K1: Post code | L1: Annual net household income | M1: Annual fuel costs | N1: Warm Home Discount? | O1: Fuel poverty status

Sheet CommunityFPDatabase Scotland
A1: Title | B1: First name | C1: Surname | D1: Flat number | E1: Building name | F1: Building number | G1: Street | H1: District | I1: Town | J1: County | K1: Post code | L1: Annual net household income | M1: Annual mortgage payments | N1: Annual rent payments | O1: Annual income (after housing costs) | P1: Annual fuel costs | Q1: Household size | R1: Number of children (0-1) | S1: Number of children (2-4) | T1: Number of children (primary) | U1: Number of children (secondary) | V1: Total number of children | W1: Number of adults (non-pensioners) | X1: Number of pensioners | Y1: Warm Home Discount? | Z1: Fuel poverty status | AA1: Fuel poverty gap

Sheet DataCollectionFormEng (PRINT)
B4: FUEL POVERTY DATA COLLECTION QUESTIONNAIRE
C8: Title:
C9: First name:
C10: Surname:
C11: Flat Number:
C12: Building name:
C13: Building number:
C14: Street:
C15: District:
C16: Town:
C17: County:
C18: Post code:
C21: INCOME
C22: What is your total annual disposable household income? This should include private income after tax and NI, any payments from benefits (apart from disability benefits) and tax credits, net interest from savings and investments, plus the Winter Fuel Payment if received. You should also subtract your annual council tax bill from your income (see overleaf for space to make notes).
C25: HOUSING COSTS
C26: Mortgage payments
C27: If you have a mortgage, how much do you pay in each installment?
C28: How often do you pay these (e.g. weekly, monthly, other)
C30: Rent costs
C31: If you pay rent, how much do you pay each installment?
C32: How often do you pay these (e.g. weekly, monthly, other)
C35: FUEL COSTS
C36: What do you pay for electricity each month?
C37: What do you pay for gas each month?
C38: Do you receive the Warm Home Discount?
C40: Do you spend money on other fuels each month?
C41: House coal
C42: Wood (logs, pellets, chips)
C43: LPG
C44: Oil
C45: Other
C48: HOUSEHOLD SIZE
C49: How many people are regularly living in your household?
C50: How many of these are 14 or over?
C51: How many of these are under 14?
C54: INCOME CALCULATION NOTES
C56: The income for all persons over 16 should be included in the calculation where applicable. If benefits or tax credits are received as a couple or household as a whole then only include these for one person below.
C58: PERSON 1
C59: ANNUAL GROSS PRIVATE INCOME (from earnings and/or pension) | D59: £
C60: ANNUAL NET PRIVATE INCOME (Deduct tax and & NI from GROSS PRIVATE INCOME) | D60: £
C61: Running total | D61: £
C62: To the NET PRIVATE EARNINGS then add:
C63: ANNUAL NET INCOME FROM SAVINGS/INVESTMENTS | D63: £
C64: ANNUAL INCOME FROM STATE BENEFITS Also include housing related benefits, Council Tax Support/Reduction, and Mortage Payment Protection Insurance. Exclude disability benefits: Disability Living Allowance, Personal Independence Payments, and Attendance Allowance. Ensure Universal Credit payment for lone parents is at least their theoretical entitlement and ensure pension payments are at least those of minimum state pension. | D64: £
C65: ANNUAL INCOME FROM TAX CREDITS | D65: £
C66: Running total | D66: £
C68: PERSON 1 ANNUAL NET INCOME | D68: £ | E68: (1)
C70: PERSON 2
C71: ANNUAL GROSS PRIVATE INCOME (from earnings and/or pension) | D71: £
C72: ANNUAL NET PRIVATE INCOME (Deduct tax and & NI from GROSS PRIVATE INCOME) | D72: £
C73: Running total | D73: £
C74: To the NET PRIVATE EARNINGS then add:
C75: ANNUAL NET INCOME FROM SAVINGS/INVESTMENTS | D75: £
C76: ANNUAL INCOME FROM STATE BENEFITS Also include housing related benefits, Council Tax Support/Reduction, and Mortage Payment Protection Insurance. Exclude disability benefits: Disability Living Allowance, Personal Independence Payments, and Attendance Allowance. Ensure Universal Credit payment for lone parents is at least their theoretical entitlement and ensure pension payments are at least those of minimum state pension. | D76: £
C77: ANNUAL INCOME FROM TAX CREDITS | D77: £
C78: Running total | D78: £
C80: PERSON 2 ANNUAL NET INCOME | D80: £ | E80: (2)
C82: OTHER PERSONS
C83: ANNUAL GROSS PRIVATE INCOME (from earnings and/or pension) | D83: £
C84: ANNUAL NET PRIVATE INCOME (Deduct tax and & NI from GROSS PRIVATE INCOME) | D84: £
C85: Running total | D85: £
C86: To the NET PRIVATE EARNINGS then add:
C87: ANNUAL NET INCOME FROM SAVINGS/INVESTMENTS | D87: £
C88: ANNUAL INCOME FROM STATE BENEFITS Also include housing related benefits, Council Tax Support/Reduction, and Mortage Payment Protection Insurance. Exclude disability benefits: Disability Living Allowance, Personal Independence Payments, and Attendance Allowance. Ensure Universal Credit payment for lone parents is at least their theoretical entitlement and ensure pension payments are at least those of minimum state pension. | D88: £
C89: ANNUAL INCOME FROM TAX CREDITS | D89: £
C90: Running total | D90: £
C92: OTHER PERSONS ANNUAL NET INCOME | D92: £ | E92: (3)
C94: Preliminary total
C95: TOTAL OF ALL PERSONS ANNUAL NET INCOME (1) + (2) + (3) | D95: £ | E95: (4)
C97: From the preliminary total then add:
C98: WINTER FUEL PAYMENTS | D98: £ | E98: (5)
C99: And then subtract:
C100: ANNUAL COUNCIL TAX BILL | D100: £ | E100: (6)
C102: FINAL TOTAL NET HOUSEHOLD INCOME (4) + (5) - (6) | D102: £

Sheet DataCollectionFormWal (PRINT)
B4: FUEL POVERTY DATA COLLECTION QUESTIONNAIRE
C8: Title:
C9: First name:
C10: Surname:
C11: Flat Number:
C12: Building name:
C13: Building number:
C14: Street:
C15: District:
C16: Town:
C17: County:
C18: Post code:
C21: INCOME
C22: What is your total annual disposable household income? This should include private income after tax and NI, any payments from benefits and tax credits, net interest from savings and investments, plus the Winter Fuel Payment if received. You should also subtract your annual council tax bill from your income (see overleaf for space to make notes).
C25: HOUSING COSTS
C26: Mortgage payments
C27: If you have a mortgage, how much do you pay in each installment?
C28: How often do you pay these (e.g. weekly, monthly, other)
C30: Rent costs
C31: If you pay rent, how much do you pay each installment?
C32: How often do you pay these (e.g. weekly, monthly, other)
C35: FUEL COSTS
C36: What do you pay for electricity each month?
C37: What do you pay for gas each month?
C38: Do you receive the Warm Home Discount?
C40: Do you spend money on other fuels each month?
C41: House coal
C42: Wood (logs, pellets, chips)
C43: LPG
C44: Oil
C45: Other
C48: INCOME CALCULATION NOTES
C50: The income for all persons over 16 should be included in the calculation where applicable. If benefits or tax credits are received as a couple or household as a whole then only include these for one person below.
C52: PERSON 1
C53: ANNUAL GROSS PRIVATE INCOME (from earnings and/or pension) | D53: £
C54: ANNUAL NET PRIVATE INCOME (Deduct tax and & NI from GROSS PRIVATE INCOME) | D54: £
C55: Running total | D55: £
C56: To the NET PRIVATE EARNINGS then add:
C57: ANNUAL NET INCOME FROM SAVINGS/INVESTMENTS | D57: £
C58: ANNUAL INCOME FROM STATE BENEFITS Also include housing related benefits, Council Tax Support/Reduction, Mortage Payment Protection Insurance, and disability benefits (Disability Living Allowance, Personal Independence Payments, and Attendance Allowance). | D58: £
C59: ANNUAL INCOME FROM TAX CREDITS | D59: £
C60: Running total | D60: £
C62: PERSON 1 ANNUAL NET INCOME | D62: £ | E62: (1)
C64: PERSON 2
C65: ANNUAL GROSS PRIVATE INCOME (from earnings and/or pension) | D65: £
C66: ANNUAL NET PRIVATE INCOME (Deduct tax and & NI from GROSS PRIVATE INCOME) | D66: £
C67: Running total | D67: £
C68: To the NET PRIVATE EARNINGS then add:
C69: ANNUAL NET INCOME FROM SAVINGS/INVESTMENTS | D69: £
C70: ANNUAL INCOME FROM STATE BENEFITS Also include housing related benefits, Council Tax Support/Reduction, Mortage Payment Protection Insurance, and disability benefits (Disability Living Allowance, Personal Independence Payments, and Attendance Allowance). | D70: £
C71: ANNUAL INCOME FROM TAX CREDITS | D71: £
C72: Running total | D72: £
C74: PERSON 2 ANNUAL NET INCOME | D74: £ | E74: (2)
C76: OTHER PERSONS
C77: ANNUAL GROSS PRIVATE INCOME (from earnings and/or pension) | D77: £
C78: ANNUAL NET PRIVATE INCOME (Deduct tax and & NI from GROSS PRIVATE INCOME) | D78: £
C79: Running total | D79: £
C80: To the NET PRIVATE EARNINGS then add:
C81: ANNUAL NET INCOME FROM SAVINGS/INVESTMENTS | D81: £
C82: ANNUAL INCOME FROM STATE BENEFITS Also include housing related benefits, Council Tax Support/Reduction, Mortage Payment Protection Insurance, and disability benefits (Disability Living Allowance, Personal Independence Payments, and Attendance Allowance). | D82: £
C83: ANNUAL INCOME FROM TAX CREDITS | D83: £
C84: Running total | D84: £
C86: OTHER PERSONS ANNUAL NET INCOME | D86: £ | E86: (3)
C88: Preliminary total
C89: TOTAL OF ALL PERSONS ANNUAL NET INCOME (1) + (2) + (3) | D89: £ | E89: (4)
C91: From the preliminary total then add:
C92: WINTER FUEL PAYMENTS | D92: £ | E92: (5)
C93: And then subtract:
C94: ANNUAL COUNCIL TAX BILL | D94: £ | E94: (6)
C96: FINAL TOTAL NET HOUSEHOLD INCOME (4) + (5) - (6) | D96: £

Sheet DataCollectionFormSco (PRINT)
B4: FUEL POVERTY DATA COLLECTION QUESTIONNAIRE
C8: Title:
C9: First name:
C10: Surname:
C11: Flat Number:
C12: Building name:
C13: Building number:
C14: Street:
C15: District:
C16: Town:
C17: County:
C18: Post code:
C21: INCOME
C22: What is your total annual disposable household income? This should include private income after tax and NI, any payments from benefits and tax credits, net interest from savings and investments, plus the Pension Age Winter Heating Payment if received. You should also subtract your annual council tax bill from your income (see overleaf for space to make notes).
C25: HOUSING COSTS
C26: Mortgage payments
C27: If you have a mortgage, how much do you pay in each installment?
C28: How often do you pay these (e.g. weekly, monthly, other)
C30: Rent costs
C31: If you pay rent, how much do you pay each installment?
C32: How often do you pay these (e.g. weekly, monthly, other)
C35: FUEL COSTS
C36: What do you pay for electricity each month?
C37: What do you pay for gas each month?
C38: Do you receive the Warm Home Discount?
C40: Do you spend money on other fuels each month?
C41: House coal
C42: Wood (logs, pellets, chips)
C43: LPG
C44: Oil
C45: Other
C48: HOUSEHOLD SIZE
C49: How many people are regularly living in your household?
C50: How many of these are children aged 0-1 years old?
C51: How many of these are children aged 2-4 years old?
C52: How many of these are children of primary school age?
C53: How many of these are children of secondary school age?
C54: How many of these are older than secondary school age but below pensioner age?
C55: How many of these are at pensioner age?
C58: INCOME CALCULATION NOTES
C60: The income for all persons over 16 should be included in the calculation where applicable. If benefits or tax credits are received as a couple or household as a whole then only include these for one person below.
C62: PERSON 1
C63: ANNUAL GROSS PRIVATE INCOME (from earnings and/or pension) | D63: £
C64: ANNUAL NET PRIVATE INCOME (Deduct tax and & NI from GROSS PRIVATE INCOME) | D64: £
C65: Running total | D65: £
C66: To the NET PRIVATE EARNINGS then add:
C67: ANNUAL NET INCOME FROM SAVINGS/INVESTMENTS | D67: £
C68: ANNUAL INCOME FROM STATE BENEFITS Also include housing related benefits, Council Tax Support/Reduction, Mortage Payment Protection Insurance, and disability benefits (Adult Disability Payment, Scottish Adult Disability Living Allowance, and Pension Age Disability Payment). | D68: £
C69: ANNUAL INCOME FROM TAX CREDITS | D69: £
C70: Running total | D70: £
C72: PERSON 1 ANNUAL NET INCOME | D72: £ | E72: (1)
C74: PERSON 2
C75: ANNUAL GROSS PRIVATE INCOME (from earnings and/or pension) | D75: £
C76: ANNUAL NET PRIVATE INCOME (Deduct tax and & NI from GROSS PRIVATE INCOME) | D76: £
C77: Running total | D77: £
C78: To the NET PRIVATE EARNINGS then add:
C79: ANNUAL NET INCOME FROM SAVINGS/INVESTMENTS | D79: £
C80: ANNUAL INCOME FROM STATE BENEFITS Also include housing related benefits, Council Tax Support/Reduction, Mortage Payment Protection Insurance, and disability benefits (Adult Disability Payment, Scottish Adult Disability Living Allowance, and Pension Age Disability Payment). | D80: £
C81: ANNUAL INCOME FROM TAX CREDITS | D81: £
C82: Running total | D82: £
C84: PERSON 2 ANNUAL NET INCOME | D84: £ | E84: (2)
C86: OTHER PERSONS
C87: ANNUAL GROSS PRIVATE INCOME (from earnings and/or pension) | D87: £
C88: ANNUAL NET PRIVATE INCOME (Deduct tax and & NI from GROSS PRIVATE INCOME) | D88: £
C89: Running total | D89: £
C90: To the NET PRIVATE EARNINGS then add:
C91: ANNUAL NET INCOME FROM SAVINGS/INVESTMENTS | D91: £
C92: ANNUAL INCOME FROM STATE BENEFITS Also include housing related benefits, Council Tax Support/Reduction, Mortage Payment Protection Insurance, and disability benefits (Adult Disability Payment, Scottish Adult Disability Living Allowance, and Pension Age Disability Payment). | D92: £
C93: ANNUAL INCOME FROM TAX CREDITS | D93: £
C94: Running total | D94: £
C96: OTHER PERSONS ANNUAL NET INCOME | D96: £ | E96: (3)
C98: Preliminary total
C99: TOTAL OF ALL PERSONS ANNUAL NET INCOME (1) + (2) + (3) | D99: £ | E99: (4)
C101: From the preliminary total then add:
C102: PENSION AGE WINTER HEATING PAYMENT | D102: £ | E102: (5)
C103: And then subtract:
C104: ANNUAL COUNCIL TAX BILL | D104: £ | E104: (6)
C106: FINAL TOTAL NET HOUSEHOLD INCOME (4) + (5) - (6) | D106: £
